fUST/lending_fUST_20240714
["ID","MTS","AMOUNT","RATE_DAILY","PERIOD"]
[331947390,1720887039567,-225.11509687,0.00032876,4]
[331947391,1720887039578,-481.58326659,0.0003295,30]
[331947392,1720887039588,-220.0,0.00033,2]
[331947393,1720887039597,-220.0,0.00033,2]
[331947394,1720887039606,-152.38406,0.00033204,7]
[331947395,1720887039615,-543.660473,0.00033295,2]
[331947396,1720887039625,-300.0,0.000333,8]
[331947397,1720887039635,-161.0,0.00033449,7]
[331947398,1720887039645,-161.0,0.00033449,7]
[331947399,1720887039654,-303.663077,0.00033523,2]
[331947400,1720887039663,-300.0,0.00033548,2]
[331947401,1720887039673,-364.8949385,0.00033575,2]
[331947402,1720887039684,-316.49694238,0.00033634,2]
[331947403,1720887039694,-878.33419801,0.00033689,5]
[331947404,1720887039704,-4581.25220715,0.000337,2]
[331947405,1720887039715,-160.0,0.00033719,4]
[331947406,1720887039725,-151.0,0.00033738,5]
[331947407,1720887039736,-151.0,0.00033738,5]
[331947408,1720887039748,-5614.25337699,0.00033769,4]
[331947409,1720887039758,-284.70994421,0.00033769,3]
[331947410,1720887039768,-16847.5872053,0.00033779,4]
[331947411,1720887039779,-151.0,0.00033779,7]
[331947412,1720887039789,-151.0,0.00033779,7]
[331947413,1720887039800,-151.0,0.00033779,7]
[331947414,1720887039811,-33695.1744107,0.0003378,4]
[331947415,1720887039822,-500.0,0.00033788,2]
[331947416,1720887039832,-500.0,0.00033789,2]
[331947418,1720887039842,-500.0,0.00033789,2]
[331947420,1720887039853,-500.0,0.00033789,2]
[331947421,1720887039864,-161.0,0.0003379,7]
[331947422,1720887039873,-161.0,0.0003379,7]
[331947423,1720887039882,-42150.29652018,0.0003379,4]
[331947527,1720887041321,-6007.90406604,0.0003379,4]
[331947530,1720887041338,-36079.73544048,0.0003379,4]
[331947532,1720887041348,-151.0,0.0003379,7]
[331947534,1720887041357,-151.0,0.0003379,7]
[331947536,1720887041366,-151.0,0.0003379,7]
[331947539,1720887041381,-151.0,0.0003379,7]
[331947541,1720887041397,-151.0,0.0003379,7]
[331947543,1720887041407,-206.945181,0.0003379,7]
[331947545,1720887041416,-458.36,0.00033799,2]
[331947547,1720887041426,-458.36,0.00033799,2]
[331947549,1720887041435,-458.36,0.00033799,2]
[331947551,1720887041445,-458.36,0.00033799,2]
[331947553,1720887041455,-458.36,0.00033799,2]
[331947555,1720887041465,-458.36,0.00033799,2]
[331947558,1720887041474,-458.36,0.00033799,2]
[331947560,1720887041484,-458.36,0.00033799,2]
[331947562,1720887041498,-458.36,0.00033799,2]
[331947564,1720887041508,-500.0,0.00033799,2]
[331947566,1720887041518,-579.98,0.00033799,2]
[331947568,1720887041528,-12539.51711551,0.000338,5]
[331947570,1720887041538,-74417.27257268,0.000338,2]
[331947572,1720887041550,-37464.57440639,0.000338,2]
[331947575,1720887041563,-1346.5,0.000338,2]
[331947577,1720887041575,-19792.00242554,0.000338,2]
[331947581,1720887041609,1874.33333646,0.00027123,10]
[331947585,1720887041636,-631.99718276,0.00027123,10]
[331947591,1720887041687,-8184.07236963,0.00027123,10]
[331947593,1720887041696,-19314.31917381,0.000338,2]
[331947596,1720887041708,-501.98208771,0.000338,2]
[331947663,1720887043541,-4263.45773586,0.000338,2]
[331947664,1720887043573,-2297.1721867,0.000338,2]
[331947683,1720887069332,500.0,0.00024657,2]
[331947684,1720887078330,500.0,0.00024657,2]
[331947687,1720887102142,500.0,0.00024657,2]
[331947688,1720887104148,500.0,0.00024657,2]
[331947690,1720887108614,500.0,0.00024657,2]
[331947695,1720887130417,827.69881052,0.00024657,2]
[331947718,1720887956150,-519.899985,0.00021096,2]
[331947719,1720887956174,-250.0,0.00023348,2]
[331947720,1720887956195,-1033.72187834,0.00023453,2]
[331947744,1720888033106,-982.69105725,0.00022942,2]
[331947745,1720888033129,-666.34560339,0.00022942,2]
[331947746,1720888033149,-170.35553231,0.00023453,2]
[331947747,1720888033170,-161.78072966,0.00023453,2]
[331947748,1720888033190,-1000.0,0.00023453,2]
[331947749,1720888033212,-1000.0,0.00024,5]
[331947750,1720888033233,-1000.0,0.00024,2]
[331947751,1720888033254,-300.0,0.00024419,2]
[331947752,1720888033274,-300.0,0.00024419,2]
[331947753,1720888033297,-24900.0,0.0002442,2]
[331947754,1720888033318,-250.0,0.00024421,2]
[331947755,1720888033342,-155.5974996,0.00024481,2]
[331947756,1720888033364,-993.15706015,0.00024481,2]
[331947757,1720888033386,-228.08513447,0.00024481,2]
[331947758,1720888033407,-368.140236,0.00024514,2]
[331947759,1720888033429,-153.0,0.00024551,2]
[331947760,1720888033576,-153.0,0.00024551,2]
[331947761,1720888033601,-153.0,0.00024551,2]
[331947762,1720888033624,-500.0,0.00024657,2]
[331947763,1720888033645,-500.0,0.00024657,2]
[331947764,1720888033669,-500.0,0.00024657,2]
[331947765,1720888033691,-500.0,0.00024657,2]
[331947766,1720888033712,-633.58551696,0.00024657,2]
[331947767,1720888033732,-769.43,0.00024657,2]
[331947768,1720888033754,-441.41381822,0.00024657,2]
[331947769,1720888033774,-3000.0,0.00024726,2]
[331947770,1720888033795,-769.43,0.00024931,2]
[331947771,1720888033822,-1000.0,0.00025,3]
[331947772,1720888033843,-769.43,0.00025205,2]
[331947773,1720888033867,-769.43,0.00025479,2]
[331947774,1720888033893,-155.54433152,0.00025501,2]
[331947775,1720888033916,-532.67305812,0.00025501,2]
[331947776,1720888033939,-620.69520886,0.00025715,2]
[331947777,1720888033963,-769.43,0.00025753,2]
[331947778,1720888033990,-154.60575532,0.00025869,2]
[331947779,1720888034012,-276.47180796,0.00025869,2]
[331947780,1720888034032,-251.16176359,0.00025902,2]
[331947781,1720888034053,-936.527443,0.00026,10]
[331947782,1720888034074,-769.43,0.00026027,2]
[331947783,1720888034096,-769.43,0.00026301,2]
[331947784,1720888034117,-161.83707032,0.00026418,2]
[331947785,1720888034139,-152.46736111,0.00026539,2]
[331947786,1720888034161,-285.9827107,0.00026574,2]
[331947787,1720888034182,-769.43,0.00026575,2]
[331947788,1720888034202,-161.83707032,0.00026642,2]
[331947789,1720888034223,-589.77279657,0.00026848,2]
[331947790,1720888034243,-769.43,0.00026849,2]
[331947791,1720888034263,-295.0,0.00026861,2]
[331947792,1720888034285,-170.79925197,0.00026925,2]
[331947793,1720888034306,-769.43,0.00027123,2]
[331947794,1720888034327,-161.83707032,0.00027162,2]
[331947795,1720888034347,-154.69833824,0.00027184,2]
[331947796,1720888034370,-519.899985,0.00027195,2]
[331947797,1720888034391,-151.0,0.00027336,2]
[331947798,1720888034412,-152.46736111,0.00027392,2]
[331947799,1720888034432,-769.43,0.00027397,2]
[331947800,1720888034454,-175.48417072,0.000274,2]
[331947801,1720888034476,-152.46736111,0.00027411,2]
[331947802,1720888034497,-769.43,0.00027671,2]
[331947803,1720888034519,-150.4447953,0.00027845,2]
[331947804,1720888034547,-769.43,0.00027945,2]
[331947805,1720888034569,-1341.33,0.00027999,2]
[331947806,1720888034590,-500.0,0.00027999,2]
[331947807,1720888034612,-500.0,0.00027999,2]
[331947808,1720888034635,-408.19251566,0.00027999,2]
[331947809,1720888034662,-500.0,0.00027999,2]
[331947810,1720888034683,-500.0,0.00027999,2]
[331947811,1720888034705,-300.01328692,0.00027999,2]
[331947812,1720888034728,-300.01328692,0.00027999,2]
[331947813,1720888034749,-1000.0,0.00028,2]
[331947814,1720888034769,-1010.24739613,0.00028,2]
[331947815,1720888034790,-515.85814946,0.00028,2]
[331947816,1720888034812,-254.93947749,0.00028,30]
[331947817,1720888034836,-500.0,0.00028218,2]
[331947818,1720888034860,-500.0,0.00028218,2]
[331947819,1720888034883,-769.43,0.00028219,2]
[331947820,1720888034908,-1341.33,0.00028273,2]
[331947821,1720888034931,-500.0,0.00028273,2]
[331947822,1720888034952,-151.0,0.00028409,3]
[331947823,1720888034973,-5008.0005086,0.00028427,2]
[331947824,1720888034995,-500.0,0.00028492,2]
[331947825,1720888035015,-769.43,0.00028493,2]
[331947826,1720888035036,-1500.0,0.000285,5]
[331947827,1720888035059,-1341.33,0.00028547,2]
[331947828,1720888035080,-500.0,0.00028547,2]
[331947829,1720888035102,-152.94115718,0.00028729,2]
[331947830,1720888035125,-500.0,0.00028766,2]
[331947831,1720888035146,-769.43,0.00028767,2]
[331947832,1720888035169,-500.0,0.00028815,2]
[331947833,1720888035189,-500.0,0.00028815,2]
[331947834,1720888035210,-1341.33,0.00028821,2]
[331947835,1720888035231,-500.0,0.00028821,2]
[331947836,1720888035253,-155.38803879,0.00028837,2]
[331947837,1720888035275,-2000.0,0.00029,7]
[331947838,1720888035299,-500.0,0.0002904,2]
[331947839,1720888035321,-769.43,0.00029041,2]
[331947840,1720888035343,-1341.33,0.00029095,2]
[331947841,1720888035371,-500.0,0.00029095,2]
[331947842,1720888035393,-152.46736111,0.00029153,2]
[331947843,1720888035414,-150.87924058,0.00029174,2]
[331947844,1720888035435,-500.0,0.00029174,2]
[331947845,1720888035456,-505.19967085,0.00029174,2]
[331947846,1720888035478,-500.0,0.00029174,2]
[331947847,1720888035499,-500.0,0.00029174,2]
[331947848,1720888035520,-500.0,0.00029174,2]
[331947849,1720888035540,-500.0,0.00029314,2]
[331947850,1720888035563,-769.43,0.00029315,2]
[331947851,1720888035586,-500.0,0.00029362,2]
[331947852,1720888035609,-1341.33,0.00029369,2]
[331947853,1720888036337,-500.0,0.00029369,2]
[331947854,1720888036361,-152.46736111,0.00029465,2]
[331947855,1720888036385,-151.0,0.00029483,3]
[331947856,1720888036407,-2047.73,0.00029527,3]
[331947857,1720888036432,-5755.23503983,0.00029537,2]
[331947858,1720888036454,-500.0,0.00029588,2]
[331947859,1720888036475,-769.43,0.00029589,2]
[331947860,1720888036498,-1341.33,0.00029643,2]
[331947861,1720888036522,-500.0,0.00029643,2]
[331947862,1720888036545,-152.46736111,0.00029715,2]
[331947863,1720888036567,-403.81348328,0.00029772,2]
[331947864,1720888036588,-391.91633005,0.00029803,2]
[331947865,1720888036610,-152.46736111,0.00029858,2]
[331947866,1720888036632,-318.9725089,0.00029861,2]
[331947867,1720888036654,-500.0,0.00029862,2]
[331947868,1720888036676,-348.76479472,0.00029862,2]
[331947869,1720888036698,-218.23892103,0.00029862,2]
[331947870,1720888036727,-500.0,0.00029862,2]
[331947871,1720888036754,-500.0,0.00029862,2]
[331947872,1720888036780,-500.0,0.00029862,2]
[331947873,1720888036803,-500.0,0.00029862,2]
[331947874,1720888036842,-500.0,0.00029862,2]
[331947875,1720888036867,-225.19704017,0.00029862,2]
[331947876,1720888036891,-500.0,0.00029862,2]
[331947877,1720888036916,-367.6570364,0.00029862,2]
[331947878,1720888036940,-500.0,0.00029862,2]
[331947879,1720888036967,-500.0,0.00029862,2]
[331947880,1720888036993,-769.43,0.00029863,2]
[331947881,1720888037025,-518.34284537,0.00029869,2]
[331947882,1720888037047,-225.11509687,0.00029887,2]
[331947883,1720888037073,-4222.90590119,0.00029901,4]
[331947886,1720888044148,-154.82205658,0.00025204,2]
[331947887,1720888044169,-161.83707034,0.00026695,2]
[331947888,1720888044190,-215.0512435,0.00027399,2]
[331947889,1720888044211,-300.01328692,0.00027399,2]
[331947890,1720888044230,-403.81348328,0.00027999,2]
[331947891,1720888044252,-391.91633005,0.00029793,2]
[331947892,1720888044275,-5270.10257405,0.00029901,4]
[331947893,1720888050195,-993.15706015,0.00023966,2]
[331947894,1720888050218,-6487.56542956,0.00029901,4]
[331947895,1720888050239,-1435.23931138,0.00029904,2]
[331947896,1720888050262,-1341.33,0.00029917,2]
[331947897,1720888050284,-500.0,0.00029917,2]
[331947898,1720888050310,-402.39099509,0.00029999,2]
[331947899,1720888050332,-1626.22431711,0.00029999,7]
[331947900,1720888050354,-154.54409492,0.00029999,2]
[331947901,1720888050375,-643.93924923,0.0003,4]
[331947902,1720888050398,-471.89162154,0.0003,4]
[331947903,1720888050418,-5614.25337699,0.0003,4]
[331947904,1720888050439,-284.70994421,0.0003,3]
[331947905,1720888050467,-730.05403984,0.0003,2]
[331947906,1720888050488,-250.46139104,0.0003,4]
[331947907,1720888050510,-481.58326659,0.0003,30]
[331947908,1720888050532,-1000.0,0.0003,10]
[331947909,1720888050552,-154.55950541,0.0003,4]
[331947910,1720888050573,-268.0,0.0003,2]
[331947911,1720888050594,-769.43,0.00030136,2]
[331947912,1720888050616,-500.0,0.00030136,2]
[331947913,1720888050640,-1341.33,0.00030191,2]
[331947914,1720888050663,-500.0,0.00030191,2]
[331947915,1720888050687,-500.0,0.00030199,2]
[331947916,1720888050707,-1558.69536058,0.00030229,4]
[331947918,1720888050728,-162.590809,0.00030339,2]
[331947919,1720888050749,-769.43,0.0003041,2]
[331947920,1720888050775,-500.0,0.0003041,2]
[331947921,1720888050798,-1341.33,0.00030465,2]
[331947922,1720888050824,-500.0,0.00030465,2]
[331947923,1720888050846,-151.0,0.00030557,4]
[331947924,1720888050872,-5755.23503983,0.00030578,2]
[331947925,1720888050896,-4410.67,0.00030677,3]
[331947926,1720888050921,-3675.56,0.00030677,3]
[331947927,1720888050943,-31961.1478096,0.00030677,4]
[331947928,1720888050979,-769.43,0.00030684,2]
[331947929,1720888051003,-500.0,0.00030684,2]
[331947930,1720888051027,-500.0,0.00030687,2]
[331947931,1720888051052,-500.0,0.00030687,2]
[331947932,1720888051075,-61483.60535003,0.00030687,60]
[331947933,1720888051097,-161.83707034,0.00030724,7]
[331947934,1720888051120,-1341.33,0.00030739,2]
[331947935,1720888051149,-500.0,0.00030739,2]
[331947936,1720888051172,-769.48501875,0.00030958,2]
[331947937,1720888051194,-500.0,0.00030958,2]
[331947938,1720888051216,-1341.33,0.00031013,2]
[331947940,1720888051240,-500.0,0.00031013,2]
[331947941,1720888051263,-500.0,0.00031232,2]
[331947942,1720888051284,-154.57491897,0.00031251,2]
[331947943,1720888051309,-266.96885211,0.00031251,4]
[331947944,1720888051331,-1341.33,0.00031287,2]
[331947945,1720888051354,-500.0,0.00031287,2]
[331947946,1720888051375,-203.899999,0.000313,4]
[331947947,1720888051400,-500.0,0.00031506,2]
[331947948,1720888051422,-1341.33,0.00031561,2]
[331947949,1720888051444,-500.0,0.00031561,2]
[331947950,1720888051465,-358.06439585,0.00031604,2]
[331947951,1720888051488,-5755.23503983,0.00031619,2]
[331947952,1720888051509,-151.0,0.00031631,4]
[331947953,1720888051532,-4389.19245971,0.000317,2]
[331947954,1720888051555,-500.0,0.0003178,2]
[331947955,1720888051578,-500.0,0.00031799,2]
[331947956,1720888051600,-1341.33,0.00031835,2]
[331947957,1720888051621,-500.0,0.00031835,2]
[331947958,1720888051644,-358.06439585,0.00031889,2]
[331947959,1720888051664,-329.090944,0.00032,120]
[331947960,1720888051686,-500.0,0.00032053,2]
[331947961,1720888051706,-358.06439585,0.00032068,2]
[331947962,1720888051729,-1341.33,0.00032109,2]
[331947963,1720888051751,-500.0,0.00032109,2]
[331947964,1720888051772,-256.98931644,0.00032272,2]
[331947965,1720888051793,-311.79863756,0.00032272,4]
[331947966,1720888051815,-300.0,0.000323,6]
[331947967,1720888051841,-500.0,0.00032327,2]
[331947968,1720888051864,-1341.33,0.00032383,2]
[331947969,1720888051887,-500.0,0.00032383,2]
[331947970,1720888051911,-358.06439585,0.0003239,2]
[331947971,1720888051936,-8028.95533763,0.000325,60]
[331947972,1720888051959,-500.0,0.00032601,2]
[331947973,1720888051982,-15980.5739048,0.00032649,4]
[331947974,1720888052004,-1341.33,0.00032657,2]
[331947975,1720888052027,-500.0,0.00032657,2]
[331947976,1720888052048,-5755.23503983,0.00032659,2]
[331947977,1720888052070,-151.0,0.00032704,5]
[331947978,1720888052090,-151.0,0.00032704,5]
[331947979,1720888052112,-4979.0201485,0.00032737,2]
[331947980,1720888052132,-358.06439585,0.00032857,2]
[331947981,1720888052155,-500.0,0.00032875,2]
[331947982,1720888052177,-1341.33,0.00032931,2]
[331947983,1720888052198,-500.0,0.00032931,2]
[331947984,1720888052219,-151.0,0.0003295,7]
[331947985,1720888052364,-532.61267666,0.00033,30]
[331947986,1720888052386,-268.0,0.00033,2]
[331947987,1720888052407,-268.0,0.00033,2]
[331947988,1720888052427,-358.06439585,0.00033075,2]
[331947989,1720888052449,-151.0,0.00033075,7]
[331947990,1720888052471,-4979.0201485,0.00033135,2]
[331947991,1720888052494,-500.0,0.00033149,2]
[331947992,1720888052515,-1341.33,0.00033205,2]
[331947993,1720888052538,-489.44,0.00033205,2]
[331947994,1720888052558,-152.38406,0.00033205,7]
[331947995,1720888052579,-151.0,0.00033205,7]
[331947996,1720888052601,-4979.0201485,0.00033274,2]
[331947997,1720888052622,-155.38304106,0.00033292,4]
[331947998,1720888052643,-519.899985,0.00033295,2]
[331947999,1720888052663,-300.0,0.000333,8]
[331948000,1720888052683,-358.06439585,0.00033381,2]
[331948001,1720888052703,-500.0,0.00033423,2]
[331948002,1720888052726,-500.0,0.0003343,2]
[331948003,1720888052747,-1341.33,0.00033479,2]
[331948004,1720888052769,-358.0643959,0.00033482,2]
[331948005,1720888052790,-4979.0201487,0.00033561,2]
[331948006,1720888052813,-151.0,0.00033581,7]
[331948007,1720888052834,-151.0,0.00033581,7]
[331948008,1720888052855,-938.24675533,0.00033597,4]
[331948009,1720888052876,-215.1829908,0.00033597,4]
[331948010,1720888052899,-364.8949385,0.00033643,2]
[331948011,1720888052920,-151.0,0.0003369,7]
[331948012,1720888052941,-151.0,0.0003369,7]
[331948013,1720888052964,-500.0,0.00033697,2]
[331948014,1720888052986,-878.33419801,0.000337,5]
[331948016,1720888053009,-5755.23503983,0.000337,2]
[331948017,1720888053030,-151.0,0.000337,7]
[331948018,1720888053053,-151.0,0.000337,7]
[331948019,1720888053074,-151.0,0.000337,7]
[331948020,1720888053096,-300.0,0.00033708,2]
[331948021,1720888053117,-316.49694238,0.0003372,2]
[331948022,1720888053142,-1341.33,0.00033753,2]
[331948023,1720888053167,-151.0,0.00033778,5]
[331948024,1720888053189,-151.0,0.00033778,5]
[331948025,1720888053213,-500.0,0.00033789,2]
[331948026,1720888053237,-500.0,0.00033789,2]
[331948027,1720888053259,-151.0,0.0003379,2]
[331948028,1720888053282,-63922.2956193,0.0003379,4]
[331948029,1720888053308,-151.0,0.0003379,7]
[331948030,1720888053331,-233.296803,0.0003379,7]
[331948031,1720888053352,-211.634667,0.0003379,7]
[331948032,1720888053374,-500.0,0.00033799,2]
[331948033,1720888053397,-170835.90583669,0.000338,2]
[331948034,1720888053418,-16439.9825304,0.000338,2]
[331948035,1720888053450,-224.0,0.000338,7]
[331948036,1720888053480,-224.0,0.000338,7]
[331948037,1720888053504,-151.0,0.000338,7]
[331948038,1720888053530,-159.13,0.000338,31]
[331948039,1720888053555,-159.13,0.000338,31]
[331948040,1720888053581,-159.13,0.000338,31]
[331948041,1720888053605,-151.0,0.000338,7]
[331948042,1720888053628,-151.0,0.000338,7]
[331948043,1720888053653,-151.0,0.000338,7]
[331948044,1720888053677,-151.0,0.000338,7]
[331948045,1720888053702,-151.0,0.000338,7]
[331948046,1720888053726,-215.1829908,0.00033807,4]
[331948047,1720888053749,-156.18984732,0.00033807,2]
[331948048,1720888053772,-198.31575698,0.00033829,10]
[331948049,1720888053794,-203.24580907,0.00033842,2]
[331948050,1720888053818,-762.14319702,0.00033852,4]
[331948051,1720888053843,-500.0,0.00033971,2]
[331948052,1720888053869,-31961.1478096,0.0003399,4]
[331948053,1720888053892,-3047.266826,0.00034,2]
[331948054,1720888053919,-44609.67724927,0.00034,120]
[331948055,1720888053942,-150.112233,0.00034,5]
[331948056,1720888053965,-151.0,0.00034,7]
[331948057,1720888053990,-224.0,0.00034,7]
[331948058,1720888054014,-224.0,0.00034,7]
[331948059,1720888054043,-151.0,0.00034,7]
[331948060,1720888054067,-151.0,0.00034,7]
[331948061,1720888054091,-151.0,0.00034,7]
[331948062,1720888054116,-1341.33,0.00034027,2]
[331948063,1720888054142,-249.75,0.00034245,2]
[331948064,1720888054166,-160.0,0.00034257,3]
[331948065,1720888054192,-160.0,0.00034257,3]
[331948066,1720888054216,-300.0,0.000343,9]
[331948067,1720888054242,-1341.40090346,0.00034301,2]
[331948068,1720888054265,-285.0,0.00034317,14]
[331948069,1720888054288,-154.68290005,0.00034388,2]
[331948070,1720888054315,-154.54409492,0.00034421,4]
[331948071,1720888054343,-1062.62107637,0.00034422,4]
[331948072,1720888054368,-265.27946531,0.00034458,2]
[331948073,1720888054394,-154.54409492,0.00034458,4]
[331948074,1720888054419,-154.54409492,0.00034462,4]
[331948075,1720888054445,-303.09499603,0.00034462,4]
[331948076,1720888054473,-154.54409492,0.00034462,4]
[331948077,1720888054498,-154.55950541,0.00034467,4]
[331948078,1720888054523,-309.65908563,0.00034467,4]
[331948079,1720888054548,-435.0,0.00034472,2]
[331948080,1720888054573,-380.99386021,0.0003455,4]
[331948081,1720888054597,-2438.03759396,0.00034552,30]
[331948082,1720888054623,-150.56336624,0.00034553,2]
[331948083,1720888054649,-245.64476671,0.0003456,4]
[331948084,1720888054672,-178.23445969,0.00034562,4]
[331948085,1720888054696,-394.59024886,0.0003458,4]
[331948086,1720888054720,-154.69833824,0.00034592,4]
[331948087,1720888054743,-150.0,0.00034789,2]
[331948088,1720888054768,-160.0,0.00034796,5]
[331948089,1720888054794,-151.0,0.00034852,6]
[331948090,1720888054820,-151.0,0.00034852,6]
[331948091,1720888054844,-27412.26191459,0.000349,2]
[331948092,1720888054870,-898.16814886,0.0003499,4]
[331948093,1720888054935,-154.85288975,0.00029903,2]
[331948094,1720888054964,-199.42156576,0.0003399,5]
[331948109,1720888126032,9754.37049015,0.00015,2]
[331948112,1720888153118,-861.89554258,0.0002,2]
[331948113,1720888153139,-232.25347967,0.00021,2]
[331948114,1720888153160,-223.21583564,0.000212,2]
[331948115,1720888153182,-8075.97412387,0.00024668,2]
[331948116,1720888153202,-8129.66038745,0.000248,2]
[331948117,1720888153230,-18945.5422766,0.000248,2]
[331948118,1720888153252,-9272.6073311,0.00025,60]
[331948119,1720888153273,-3062.96,0.0002549,3]
[331948120,1720888153294,-2552.47,0.0002549,3]
[331948121,1720888153314,-2127.06,0.0002549,3]
[331948122,1720888153338,-288170.5803923,0.000255,2]
[331948126,1720888172290,-1477.12,0.0002549,3]
[331948127,1720888172313,-13957.18178775,0.000255,2]
[331948128,1720888175336,500.0,0.0002493,2]
[331948172,1720888233361,-650.3242592,0.00025277,2]
[331948174,1720888233372,-1526.36,0.0002549,3]
[331948176,1720888233382,-1271.97,0.0002549,3]
[331948178,1720888233392,-152.76724472,0.00025499,2]
[331948180,1720888233403,-244.1353563,0.00025499,2]
[331948181,1720888233413,-500.0,0.00025499,2]
[331948182,1720888233422,-500.0,0.00025499,2]
[331948183,1720888233432,-500.0,0.00025499,2]
[331948184,1720888233442,-207.63792812,0.00025499,2]
[331948185,1720888233452,-500.0,0.00025499,2]
[331948186,1720888233462,-507.35992548,0.00025499,2]
[331948187,1720888233472,-500.0,0.00025499,2]
[331948188,1720888233481,-12949.67931978,0.000255,2]
[331948247,1720888238610,-1059.97,0.0002549,3]
[331948249,1720888238621,-185587.37999503,0.000255,2]
[331948251,1720888238631,-7458.94652043,0.0002649,2]
[331948253,1720888238640,-152.46736111,0.00026544,2]
[331948255,1720888238649,-966.54780921,0.00027,15]
[331948256,1720888238658,-152.46736111,0.00027311,2]
[331948258,1720888238668,-517.73009979,0.00027399,2]
[331948260,1720888238678,-170.79925197,0.00027688,2]
[331948262,1720888238687,-8249.40740869,0.0002799,2]
[331948264,1720888238698,-500.0,0.00027999,2]
[331948266,1720888238708,-191.09633009,0.00027999,2]
[331948268,1720888238718,-500.0,0.00027999,2]
[331948270,1720888238728,-500.0,0.00027999,2]
[331948273,1720888238737,-500.0,0.00028218,2]
[331948276,1720888238746,-500.0,0.00028218,2]
[331948278,1720888238756,-500.0,0.00028218,2]
[331948280,1720888238766,-642.78,0.00028218,2]
[331948282,1720888238776,-500.0,0.00029174,2]
[331948284,1720888238788,-500.0,0.00029174,2]
[331948286,1720888238798,-154.55950541,0.0003,4]
[331948288,1720888238808,-2926.12830647,0.000319,2]
[331948290,1720888238819,-16081.31033581,0.00032,120]
[331948292,1720888238829,-300.0,0.000323,6]
[331948294,1720888238840,-152.46736111,0.00032929,7]
[331948295,1720888238849,-151.0,0.00033075,7]
[331948297,1720888238860,-300.0,0.000333,8]
[331948298,1720888238870,-170.79925198,0.00033459,7]
[331948299,1720888238883,-237.967356,0.0003379,7]
[331948300,1720888238892,-19314.31917381,0.000338,2]
[331948301,1720888238901,-5614.25337699,0.0003399,4]
[331948302,1720888238910,-284.70994421,0.0003399,3]
[331948303,1720888238921,-300.0,0.000343,9]
[331948304,1720888238930,-265.64851428,0.00034388,2]
[331948305,1720888238939,-280.41683606,0.00034421,4]
[331948306,1720888238951,-212.75481572,0.0003455,4]
[331948307,1720888238960,-269.0,0.0003499,2]
[331948308,1720888238970,-500.0,0.00034999,2]
[331948309,1720888238980,-299.21583532,0.00035,120]
[331948310,1720888238989,-10370.09142652,0.00035,2]
[331948311,1720888238998,-400.00218366,0.00035,2]
[331948312,1720888239007,-555.74624568,0.00035,15]
[331948313,1720888239016,-224.0,0.00035,7]
[331948314,1720888239027,-224.0,0.00035,7]
[331948315,1720888239037,-400.00000002,0.00035,7]
[331948316,1720888239046,-358.05722782,0.00035119,2]
[331948317,1720888239055,-300.0,0.000353,11]
[331948318,1720888239065,-554.42762896,0.00035389,48]
[331948319,1720888239074,-150.112233,0.000355,10]
[331948320,1720888239083,-743.49995005,0.0003552,2]
[331948321,1720888239093,-155.50250572,0.0003558,4]
[331948322,1720888239102,-185.08069848,0.000356,2]
[331948323,1720888239111,-454.89914504,0.00035616,7]
[331948324,1720888239120,-198.31575698,0.00035829,19]
[331948325,1720888239129,-160.0,0.00035873,6]